[Event "13th Dolomiti-Forni di Sopra-A 2022"]
[Site "Forni di Sopra"]
[Date "2022.06.17"]
[Round "7.7"]
[White "Harshita Guddanti"]
[Black "Podetti, Davide"]
[Result "0-1"]
[ECO "C64"]
[WhiteElo "2208"]
[BlackElo "2238"]
[Annotator "TA"]
[PlyCount "112"]
[EventDate "2022.06.13"]
[EventType "swiss"]
[EventCountry "ITA"]
[SourceTitle "playchess.com"]
[Source "ChessBase"]
[SourceQuality "1"]
[TimeControl "40/5400+30:1800+30"]

{[%evp 10,112,85,37,38,29,53,26,38,25,27,19,61,3,0,-4,0,1,79,0,0,0,23,-32,-34,-94,-7,-45,-30,-141,-83,-110,-110,-163,-158,-170,-162,-149,-131,-136,-110,-121,-129,-103,-115,-247,-241,-310,-322,-300,-164,-189,-65,-99,-33,-92,-88,-88,-8,-62,-68,-125,-93,-352,-324,-431,-450,-465,-453,-457,-431,-439,-432,-508,-510,-501,-495,-722,-722,-692,-677,-674,-670,-660,-659,-660,-660,-6011,-6011,-29973,-29972,-29977,-29978,-29978,-29979,-29980,-29981,-29986,-29987,-29987,-29985,-29994,-29995,-29995,-29996]} 1. e4 {[%emt 0:00:07]} e5 {[%emt 0:00:06]} 2. Nf3 {[%emt 0:00:04]} Nc6 {[%emt 0:00:03]} 3. Bb5 {[%emt 0:00:03]} a6 {[%emt 0:00:04]} 4. Ba4 {[%emt 0:00:02]} Bc5 {[%emt 0:00:05]} 5. O-O {[%emt 0:00:23]} Nge7 {[%emt 0:03:41] [#]} 6. c3 {[%emt 0:01:26]} ({White should play} 6. Nxe5 $1 $16 Nxe5 7. d4) 6... Ba7 {[%emt 0:01:19] C64: Ruy Lopez: Classical Defence (3...Bc5) except 4 0-0 Nf6.} 7. d4 {[%emt 0:01:12]} Ng6 {[%emt 0:00:35]} 8. d5 {[%emt 0:04:28]} Nce7 {[%emt 0:03:31] White has an edge.} 9. d6 {[%emt 0:02:26]} cxd6 {[%emt 0:18:15]} 10. Qxd6 {[%emt 0:01:05] [#]} Qb6 $146 {[%emt 0:03:41]} ({Predecessor:} 10... Bb8 11. Qd3 O-O 12. c4 b5 13. cxb5 d5 14. exd5 Bf5 15. Qb3 e4 16. Nd4 Qd6 {1-0 (25) Dervishi,E (2511)-Lodici,L (2545) Montesilvano 2022}) 11. Qd1 {[%emt 0:02:54]} (11. Qxb6 $14 Bxb6 12. Rd1) 11... Qc7 {[%emt 0:02:53]} 12. Bb3 {[%emt 0:04:47]} O-O {[%emt 0:03:36]} 13. h4 {[%emt 0:03:34]} Nc6 {[%emt 0:09:53]} (13... d6 $11) 14. Ng5 {[%emt 0:04:34]} (14. h5 $16 Nf4 15. h6) 14... h6 $11 {[%emt 0:08:14]} 15. Qh5 {[%emt 0:05:25]} Qd6 {[%emt 0:01:18]} 16. Nh3 {[%emt 0:08:11]} ({Better is} 16. Nf3 $1 $11) 16... Nge7 $15 {[%emt 0:03:47]} 17. a4 {[%emt 0:13:54]} (17. Na3 $15) 17... Qf6 {[%emt 0:02:16]} (17... Qd3 $17 {And now ...d5 would win.} 18. Re1 d6) 18. Kh2 {[%emt 0:11:33]} d6 $36 {[%emt 0:01:32][%cal Bd7d6,Bd6d5,Bd5e4][%mdl 2080] Black has the initiative.} 19. f4 {[%emt 0:04:58]} (19. Rd1 $11 {remains equal.}) 19... Be6 {[%emt 0:06:26]} (19... exf4 $142 $1 {Strongly threatening ...Ng6.} 20. Bxf4 Ne5) 20. Bxe6 {[%emt 0:05:58]} fxe6 {[%emt 0:00:15]} (20... Qxe6 21. f5 Qf6 22. Bg5 $1 hxg5 23. hxg5 $14) 21. Na3 {[%emt 0:11:37]} (21. Nd2 $17 {is a better defense.}) 21... d5 $19 {[%emt 0:13:28]} 22. Nc2 {[%emt 0:05:33][%cal Ba3c2,Bc2e3,Be3g4][%mdl 32]} dxe4 {[%emt 0:00:37]} 23. Be3 {[%emt 0:00:07]} Bxe3 {[%emt 0:00:50]} 24. Nxe3 {[%emt 0:00:04]} Nf5 {[%emt 0:00:45]} 25. Ng4 {[%emt 0:03:00]} Qxh4 {[%emt 0:01:53]} 26. Qxh4 {[%emt 0:01:10]} Nxh4 {[%emt 0:00:04]} 27. Rfe1 {[%emt 0:02:18]} (27. Rae1 $17 {keeps fighting.}) 27... Rad8 $1 {[%emt 0:01:21]} (27... exf4 28. Rxe4 e5 29. Nxe5) 28. b4 {[%emt 0:02:04]} Rd2 {[%emt 0:01:09]} ({Inferior is} 28... exf4 29. Rxe4 f3 30. Nxh6+ gxh6 31. Rg4+ Kh8 32. Rxh4 $17) 29. Ngf2 {[%emt 0:00:07]} g5 {[%emt 0:03:50]} (29... exf4 $142 {White must now prevent ...e3.} 30. Rxe4 g5) 30. fxg5 {[%emt 0:00:14]} hxg5 {[%emt 0:00:25]} (30... Rdxf2 $19 31. Nxf2 Rxf2 32. gxh6 Ne7 33. Rxe4 Nef5 34. h7+ Kh8) 31. Nxe4 $15 {[%emt 0:01:44]} Rxg2+ {[%emt 0:00:55]} 32. Kh1 {[%emt 0:00:03]} g4 {[%emt 0:09:43]} 33. Nhg5 {[%emt 0:00:04] [#]} Rc2 {[%emt 0:00:00]} (33... Rf4 $1 $17 {...Nd8 is the strong threat.} 34. b5 {[#]} Rb2 $1) 34. Rg1 {[%emt 0:00:41]} (34. Rac1 $11 Rb2 35. Rb1) 34... Rf4 {[%emt 0:00:00]} 35. Rae1 {[%emt 0:00:45] White is now going downhill.} (35. Raf1 $15) 35... Nd8 {[%emt 0:00:00] Threatens to win with ...Nf7.} 36. Nc5 $2 {[%emt 0:01:08][%mdl 8192]} (36. Ref1 $17) 36... Rxc3 {[%emt 0:00:00]} 37. Re4 {[%emt 0:00:34]} g3 {[%emt 0:00:00]} 38. Nh3 {[%emt 0:00:29]} g2+ {[%emt 0:00:00]} 39. Kh2 {[%emt 0:00:05]} Nf3+ {[%emt 0:00:00]} 40. Kxg2 {[%emt 0:00:04]} Rc2+ {[%emt 0:00:00]} 41. Kf1+ {[%emt 0:31:12]} Nxg1+ {[%emt 0:29:52]} 42. Nxf4 {[%emt 0:00:03]} Rc1+ {[%emt 0:00:09]} ({Stronger than} 42... exf4 43. Kxg1 Nc6 44. Nxe6 $15) 43. Kf2 {[%emt 0:00:58]} (43. Kg2 $142 exf4 44. Rxf4) 43... exf4 $19 {[%emt 0:00:05]} 44. Nd3 {[%emt 0:00:18]} Nh3+ {[%emt 0:00:00]} 45. Kg2 {[%emt 0:00:00]} Rc2+ {[%emt 0:00:00]} 46. Kxh3 {[%emt 0:00:00][%mdl 4096] Endgame KRN-KRN} Rc3 {[%emt 0:00:00]} 47. Rd4 {[%emt 0:00:00]} Nc6 {[%emt 0:00:00]} 48. Rd6 {[%emt 0:00:00]} Ne5 {[%emt 0:00:00]} 49. Rxe6 {[%emt 0:00:00]} Rxd3+ {[%emt 0:00:00] KRN-KR. Black mates.} 50. Kg2 {[%emt 0:00:00]} Rg3+ {[%emt 0:00:00]} 51. Kf1 {[%emt 0:00:00]} Ng4 {[%emt 0:00:00]} 52. b5 {[%emt 0:00:00]} axb5 {[%emt 0:00:00]} 53. axb5 {[%emt 0:00:00]} f3 {[%emt 0:00:00]} 54. Re8+ {[%emt 0:00:00]} Kf7 {[%emt 0:00:00]} 55. Rb8 {[%emt 0:00:00]} Rg2 {[%emt 0:00:00]} 56. Rxb7+ {[%emt 0:00:00]} Ke6 {[%emt 0:00:00] Weighted Error Value: White=0.65/Black=0.26 (precise)} 0-1

[Event "13th Dolomiti-Forni di Sopra-A 2022"]
[Site "Forni di Sopra"]
[Date "2022.06.17"]
[Round "7.8"]
[White "Ceres, Dragos"]
[Black "Vezzani, Stefano"]
[Result "1-0"]
[ECO "C10"]
[WhiteElo "2380"]
[BlackElo "2135"]
[Annotator "TA"]
[PlyCount "109"]
[EventDate "2022.06.13"]
[EventType "swiss"]
[EventCountry "ITA"]
[SourceTitle "playchess.com"]
[Source "ChessBase"]
[SourceQuality "1"]
[TimeControl "40/5400+30:1800+30"]

{[%evp 16,109,58,54,58,56,64,38,56,43,43,58,50,2,43,41,41,37,39,29,29,33,47,27,29,21,29,22,25,22,16,19,26,33,40,35,17,12,36,12,85,76,71,25,26,6,78,70,65,79,77,63,68,56,43,44,139,141,152,144,159,154,189,176,197,179,208,190,183,172,225,222,302,296,264,247,521,510,582,582,582,582,856,854,818,666,979,895,5081,4594,29984,396,29985,29986,29993,29994]} 1. e4 {[%emt 0:05:44]} e6 {[%emt 0:00:06]} 2. d4 {[%emt 0:00:13]} d5 {[%emt 0:00:06]} 3. Nd2 {[%emt 0:00:27]} dxe4 {[%emt 0:00:06]} 4. Nxe4 {[%emt 0:00:09]} Bd7 {[%emt 0:00:04]} 5. Nf3 {[%emt 0:01:19]} Bc6 {[%emt 0:00:14]} 6. Bd3 {[%emt 0:00:31]} Nd7 {[%emt 0:00:19]} 7. c3 {[%emt 0:00:34]} Ngf6 {[%emt 0:00:46]} 8. Nxf6+ {[%emt 0:00:09]} Nxf6 {[%emt 0:00:11]} 9. O-O {[%emt 0:00:54]} Bxf3 {[%emt 0:00:09] C10: French with 3 Nc3: Unusual Black 3rd moves and 3...dxe4.} 10. Qxf3 {[%emt 0:00:06]} (10. gxf3 Qd5 $11) 10... Qd5 {[%emt 0:00:08]} 11. Qd1 {[%emt 0:10:08] [#]} Be7 $146 {[%emt 0:05:19] White is slightly better.} ({Predecessor:} 11... Bd6 12. Re1 O-O 13. b4 Rfd8 14. Bb2 c6 15. a4 Qg5 16. g3 a5 17. b5 c5 {½-½ (51) Durarbayli,V (2625)-Sklyarov,D (2480) Krasnaya Polyana 2021}) 12. Be3 {[%emt 0:14:16]} O-O {[%emt 0:02:57]} 13. c4 {[%emt 0:06:17]} Qd8 {[%emt 0:15:51]} 14. Qb3 {[%emt 0:03:18]} (14. Rb1 $14) 14... Qc8 {[%emt 0:10:24]} (14... Ng4 {looks sharper.} 15. Be4 c5 16. d5 Qd6) 15. Be2 {[%emt 0:02:40][%cal Bd3e2,Be2f3,Bf3g2][%mdl 32]} a5 {[%emt 0:04:03]} 16. Bf3 {[%emt 0:00:40]} c6 {[%emt 0:00:16]} 17. Qc3 {[%emt 0:03:07]} Qc7 {[%emt 0:02:42]} 18. g3 {[%emt 0:03:03]} Nd7 {[%emt 0:03:17]} 19. a3 {[%emt 0:02:38]} e5 {[%emt 0:04:47]} 20. Bg2 {[%emt 0:01:47]} exd4 {[%emt 0:00:42]} 21. Bxd4 {[%emt 0:00:20]} Bf6 {[%emt 0:00:18]} 22. Rad1 {[%emt 0:02:00]} Bxd4 {[%emt 0:00:51]} 23. Rxd4 {[%emt 0:00:32]} Nf6 {[%emt 0:12:31]} 24. Rfd1 {[%emt 0:01:44][%cal Bf1d1,Bd1d4,Bd4b4][%mdl 32]} Rfd8 {[%emt 0:01:09]} 25. c5 {[%emt 0:05:47]} Rxd4 {[%emt 0:00:24]} 26. Rxd4 {[%emt 0:01:00]} h6 {[%emt 0:01:57]} 27. h3 {[%emt 0:02:00]} a4 {[%emt 0:03:47]} (27... Rd8 $11) 28. Rb4 {[%emt 0:07:34] White is more active.} Qe7 {[%emt 0:02:45]} 29. Qc2 {[%emt 0:03:45]} (29. Bf3 $16) 29... Ra5 $11 {[%emt 0:04:48]} 30. Rxa4 {[%emt 0:00:32]} (30. Qd2 {feels hotter.} Rxc5 31. Rxa4 Re5 32. Ra8+) 30... Qxc5 {[%emt 0:00:12]} (30... Rxa4 $11 {keeps the balance.} 31. Qxa4 Qe1+ 32. Bf1 Ne4) 31. Qxc5 $16 {[%emt 0:00:17]} Rxc5 $11 {[%emt 0:00:05][%mdl 4096] Endgame KRB-KRN} 32. Ra8+ {[%emt 0:02:58]} Kh7 {[%emt 0:00:06]} 33. Rb8 {[%emt 0:00:11]} Rc1+ {[%emt 0:06:47]} 34. Bf1 {[%emt 0:01:44]} b5 {[%emt 0:00:57]} 35. Kg2 {[%emt 0:00:56]} g6 {[%emt 0:03:51] [#] White leaves nothing to chance now.} (35... Rd1 $14) 36. Rc8 $1 $16 {[%emt 0:03:20] aiming for Bxb5.} Rc2 {[%emt 0:07:09]} 37. Bxb5 $1 {[%emt 0:00:19]} Rxb2 {[%emt 0:00:56]} 38. Bxc6 {[%emt 0:00:15]} (38. Rxc6 Ne4 39. Bc4 Rxf2+ 40. Kg1 Rf3 $11) 38... Kg7 {[%emt 0:01:21]} 39. a4 {[%emt 0:00:47][%cal Ba3a4,Ba4a5,Ba5a6][%mdl 32]} Ng8 {[%emt 0:00:58]} 40. Re8 {[%emt 0:05:44]} Rc2 {[%emt 0:01:24]} 41. Bf3 {[%emt 0:31:19]} Ra2 {[%emt 0:30:38]} 42. Ra8 {[%emt 0:00:31]} Nf6 {[%emt 0:04:51]} (42... Ne7 $142 43. a5 Nf5) 43. Ra7 {[%emt 0:01:37]} Ra3 {[%emt 0:00:00]} 44. a5 {[%emt 0:00:00]} h5 {[%emt 0:00:00]} 45. a6 {[%emt 0:00:00] And now Be2 would win.} g5 $2 {[%emt 0:00:00]} (45... h4 {was called for.} 46. g4 (46. gxh4 Nh5 $18) 46... g5) 46. Be2 $18 {[%emt 0:00:00]} h4 {[%emt 0:00:00]} 47. Bc4 {[%emt 0:00:00]} hxg3 {[%emt 0:00:00]} 48. fxg3 {[%emt 0:00:00]} ({Less strong is} 48. Rxf7+ Kg6 49. Re7 (49. fxg3 Rxa6 50. Re7 Rd6 $16) 49... gxf2 $18) 48... Ne4 {[%emt 0:00:00]} 49. Rxf7+ {[%emt 0:00:00]} Kg6 {[%emt 0:00:00]} 50. Re7 {[%emt 0:00:00]} Nxg3 {[%emt 0:00:00]} 51. a7 {[%emt 0:00:00] White threatens Re6+ and mate.} Kh5 {[%emt 0:00:00] [#]} 52. Bd3 $1 {[%emt 0:00:00][%cal Re7h7][%mdl 512]} Kh4 {[%emt 0:00:00]} (52... g4 53. Rh7+) 53. Rh7+ {[%emt 0:00:00]} Nh5 {[%emt 0:00:00]} 54. Be2 {[%emt 0:00:00][%csl Ge2][%cal Rh7h5] Against g4} Rg3+ 55. Kf2 {[%emt 0:00:00] Weighted Error Value: White=0.11 (very precise) /Black=0.46} 1-0

[Event "13th Dolomiti-Forni di Sopra-A 2022"]
[Site "Forni di Sopra"]
[Date "2022.06.17"]
[Round "7.9"]
[White "Ceschia, Ivano"]
[Black "Higatsberger, Michael"]
[Result "1-0"]
[ECO "A07"]
[WhiteElo "2252"]
[BlackElo "2046"]
[Annotator "TA"]
[PlyCount "115"]
[EventDate "2022.06.13"]
[EventType "swiss"]
[EventCountry "ITA"]
[SourceTitle "playchess.com"]
[Source "ChessBase"]
[SourceQuality "1"]
[TimeControl "40/5400+30:1800+30"]

{[%evp 18,115,0,-9,9,9,7,0,0,0,10,-8,21,24,22,-30,-8,-31,-5,-8,0,-4,4,0,8,0,0,-9,-19,-10,16,0,0,0,45,44,29,77,49,0,0,-53,-50,-75,0,0,0,-75,-14,-30,-19,-21,0,0,0,0,0,0,0,0,0,-87,8,8,8,8,8,8,8,8,308,291,436,429,429,429,416,408,5073,402,409,402,394,380,372,360,351,336,336,329,314,306,29988,29989,29989,29990,29990,29991,29991,29992]} 1. Nf3 {[%emt 0:04:53]} d5 {[%emt 0:00:14]} 2. g3 {[%emt 0:00:09]} Nf6 {[%emt 0:00:25]} 3. Bg2 {[%emt 0:00:03]} c6 {[%emt 0:01:19]} 4. b3 {[%emt 0:02:35]} Bg4 {[%emt 0:00:27]} 5. Bb2 {[%emt 0:02:17]} Nbd7 {[%emt 0:00:23]} 6. O-O {[%emt 0:01:40]} e6 {[%emt 0:00:27]} 7. d3 {[%emt 0:00:52]} Bd6 {[%emt 0:05:33]} 8. Nbd2 {[%emt 0:00:13]} O-O {[%emt 0:00:16]} 9. h3 {[%emt 0:05:15]} Bh5 {[%emt 0:02:11]} 10. e4 {[%emt 0:01:36]} dxe4 {[%emt 0:02:13] has lost popularity (10...e5). A07: Réti Opening: New York and Capablanca Systems.} 11. dxe4 {[%emt 0:01:29]} Be5 {[%emt 0:00:37]} 12. c3 {[%emt 0:13:28]} Bc7 {[%emt 0:04:22] The position is equal.} 13. Qe2 {[%emt 0:01:33] [#]} Qb8 $146 {[%emt 0:07:59]} ({Predecessor:} 13... Ne5 14. g4 Nxf3+ 15. Bxf3 Bg6 16. Ba3 Re8 17. Rad1 Nd5 18. Nc4 Nxc3 19. Qe3 Nxd1 20. Rxd1 {½-½ (63) Norwood,D (2507)-Collins,S (2299) Birmingham 2002}) 14. Rfe1 {[%emt 0:10:15]} e5 {[%emt 0:08:30]} 15. b4 {[%emt 0:21:45]} Rd8 {[%emt 0:06:54]} 16. Qc4 {[%emt 0:01:50]} (16. a4 $142) 16... Nf8 {[%emt 0:01:30]} 17. Nb3 {[%emt 0:02:05]} Bxf3 {[%emt 0:07:32]} 18. Bxf3 {[%emt 0:00:09]} Bb6 {[%emt 0:00:45]} 19. Rad1 {[%emt 0:05:53]} Qc7 {[%emt 0:01:14]} 20. Bc1 {[%emt 0:04:44]} Ne6 {[%emt 0:01:20]} 21. h4 {[%emt 0:05:39]} h6 {[%emt 0:02:23]} 22. Qe2 {[%emt 0:01:55]} Rxd1 {[%emt 0:03:14]} 23. Rxd1 {[%emt 0:00:07]} Rd8 {[%emt 0:00:07]} 24. Rxd8+ {[%emt 0:00:11]} Qxd8 {[%emt 0:00:12]} 25. Bg2 {[%emt 0:00:29]} h5 {[%emt 0:13:18]} 26. Bh3 {[%emt 0:05:58] Inhibits Ng4.} Ng4 {[%emt 0:01:51]} 27. Bxg4 {[%emt 0:00:51]} hxg4 {[%emt 0:00:07]} 28. c4 {[%emt 0:02:24]} (28. Nd2 $14) 28... Bd4 $11 {[%emt 0:01:42]} 29. Qxg4 {[%emt 0:00:15]} ({Better is} 29. h5 $11) 29... Qb6 $1 $15 {[%emt 0:00:22]} 30. Nxd4 {[%emt 0:02:19]} Qxd4 {[%emt 0:00:23][%mdl 4096] Endgame KQB-KQN} ({Black should try} 30... exd4 $17 31. a3 c5) 31. Be3 $11 {[%emt 0:01:43]} Qxc4 {[%emt 0:00:14]} 32. h5 {[%emt 0:00:01]} (32. a3 $11 {remains equal.}) 32... Qxb4 {[%emt 0:01:51]} (32... Qxa2 $17 {Strongly threatening ...Qb1+.} 33. h6 Qb1+ 34. Kg2 g6) 33. h6 $1 {[%emt 0:00:07]} Qe7 {[%emt 0:02:31]} (33... Qb1+ {keeps more tension.} 34. Kg2 a5 35. hxg7 Qxa2 36. Bb6 Qc4) 34. hxg7 {[%emt 0:00:38]} Qf6 {[%emt 0:01:00]} (34... b6 {seems wilder.} 35. Qf5 f6 36. Qh3 Kxg7 37. Qh6+ Kf7) 35. Bxa7 {[%emt 0:00:42]} Qxg7 {[%emt 0:00:21]} 36. Qf5 {[%emt 0:01:02]} Qg5 {[%emt 0:00:14]} 37. Bb8 {[%emt 0:01:00]} Qxf5 {[%emt 0:01:07]} 38. exf5 {[%emt 0:00:02] KB-KN} Nd4 {[%emt 0:00:13]} 39. f6 {[%emt 0:00:04]} (39. Kg2 $11) 39... Nf3+ {[%emt 0:01:26]} (39... Kh7 $1 $17 {...Kg6 is the strong threat.} 40. Kf1 e4) 40. Kf1 {[%emt 0:00:17]} Nh2+ {[%emt 0:02:05]} 41. Ke2 {[%emt 0:30:27]} Ng4 {[%emt 0:30:05]} 42. Kf3 {[%emt 0:01:31]} Nxf6 {[%emt 0:00:27]} 43. Bxe5 {[%emt 0:00:05]} Kg7 {[%emt 0:04:07][%mdl 8192] This costs Black the game.} (43... Nd7 $11 44. Ke4 Kf8) 44. a4 $1 $18 {[%emt 0:00:00][%cal Ba2a4,Ba4a5][%mdl 32] Black must now prevent a5.} Kg6 {[%emt 0:00:00]} (44... b6 {was necessary.} 45. Bd4 c5) 45. Bxf6 {[%emt 0:00:00]} Kxf6 {[%emt 0:00:00] K3P-K3P} 46. a5 {[%emt 0:00:00]} Ke5 {[%emt 0:00:00]} 47. Ke3 {[%emt 0:00:00]} Kd5 {[%emt 0:00:00]} 48. g4 {[%emt 0:00:00]} (48. Kd3 $142 {White wants to mate with g4.} Kc5 49. g4) 48... Kc4 {[%emt 0:00:00]} 49. f4 {[%emt 0:00:00]} Kb3 {[%emt 0:00:00]} 50. Kd4 {[%emt 0:00:00]} Kb4 {[%emt 0:00:00]} 51. g5 {[%emt 0:00:00] f5 would kill now.} c5+ {[%emt 0:00:00] [#]} (51... Kxa5 52. f5 b5 53. g6 fxg6 54. fxg6 Kb4 55. g7 c5+ 56. Kd3 c4+ 57. Kd4) 52. Ke3 $1 {[%emt 0:00:00] White threatens f5 and mate.} Kb3 {[%emt 0:00:00] [#]} (52... Kxa5 53. f5 c4 54. g6 b6 55. gxf7 Kb5 56. f8=Q c3 57. Qc8) 53. f5 $1 {[%emt 0:00:00]} c4 {[%emt 0:00:00] ( -> ...c3)} 54. g6 {[%emt 0:00:00]} fxg6 {[%emt 0:00:00]} (54... c3 $18 55. gxf7 c2) 55. fxg6 {[%emt 0:00:00] White mates.} c3 {[%emt 0:00:00]} 56. g7 {[%emt 0:00:00]} c2 {[%emt 0:00:00]} 57. g8=Q+ {[%emt 0:00:00]} Kb2 {[%emt 0:00:00]} 58. Qg7+ {[%emt 0:08:59] Weighted Error Value: White=0.29 (precise) /Black=0.33} 1-0

[Event "13th Dolomiti-Forni di Sopra-A 2022"]
[Site "Forni di Sopra"]
[Date "2022.06.17"]
[Round "7.10"]
[White "Pozzari, Simone"]
[Black "Fiorido, Giuseppe"]
[Result "1-0"]
[ECO "B12"]
[WhiteElo "2184"]
[BlackElo "2002"]
[Annotator "NA RC"]
[PlyCount "97"]
[EventDate "2022.06.13"]
[EventType "swiss"]
[EventCountry "ITA"]
[SourceTitle "playchess.com"]
[Source "ChessBase"]
[SourceQuality "1"]
[TimeControl "40/5400+30:1800+30"]

1. e4 {[%emt 0:00:04]} c6 {[%emt 0:00:07]} 2. d4 {[%emt 0:00:07]} d5 {[%emt 0:00:09]} 3. e5 {[%emt 0:00:07]} Bf5 {[%emt 0:00:21]} 4. Nd2 {[%emt 0:00:09]} e6 {[%emt 0:01:11]} 5. Nb3 {[%emt 0:00:09]} Nd7 {[%emt 0:01:36]} 6. Nf3 {[%emt 0:00:09]} Qb6 {[%emt 0:01:29]} 7. Be3 {[%emt 0:02:33]} Rc8 {[%emt 0:09:16]} 8. Be2 {[%emt 0:07:30]} a6 {[%emt 0:04:37]} 9. O-O {[%emt 0:01:47]} Ne7 {[%emt 0:03:36]} 10. Ne1 {[%emt 0:19:53]} h6 {[%emt 0:05:00]} 11. a4 {[%emt 0:09:34]} Bh7 {[%emt 0:03:45]} 12. f4 {[%emt 0:15:01]} Nf5 {[%emt 0:04:38]} 13. Bf2 {[%emt 0:02:12]} Qd8 {[%emt 0:09:48]} 14. Nf3 {[%emt 0:03:50]} c5 {[%emt 0:02:12]} 15. g4 {[%emt 0:04:59]} Nxd4 {[%emt 0:00:18]} 16. Nbxd4 {[%emt 0:00:06]} cxd4 {[%emt 0:00:09]} 17. Nxd4 {[%emt 0:00:04]} Bc5 {[%emt 0:00:32]} 18. Bd3 {[%emt 0:02:47]} Bxd3 {[%emt 0:05:30]} 19. Qxd3 {[%emt 0:00:32]} Bxd4 {[%emt 0:00:48]} 20. Bxd4 {[%emt 0:00:14]} Qh4 {[%emt 0:02:17]} 21. Qe2 {[%emt 0:01:12]} h5 {[%emt 0:05:32]} 22. g5 {[%emt 0:00:50]} Rc4 {[%emt 0:06:29]} 23. c3 {[%emt 0:01:16]} g6 {[%emt 0:02:06]} 24. Qf3 {[%emt 0:04:05]} Qg4+ {[%emt 0:05:39]} 25. Qxg4 {[%emt 0:00:30]} hxg4 {[%emt 0:00:10]} 26. Rf2 {[%emt 0:01:14]} Rc8 {[%emt 0:06:51]} 27. Rg2 {[%emt 0:01:24]} Nb8 {[%emt 0:00:28]} 28. Rxg4 {[%emt 0:02:02]} Nc6 {[%emt 0:00:01]} 29. Bb6 {[%emt 0:01:19]} Ne7 {[%emt 0:00:18]} 30. Ra3 {[%emt 0:01:19]} Rc6 {[%emt 0:03:15]} 31. Bf2 {[%emt 0:00:53]} Kd7 {[%emt 0:00:22]} 32. Rh4 {[%emt 0:03:32]} Rxh4 {[%emt 0:00:10]} 33. Bxh4 {[%emt 0:00:02]} Rc4 {[%emt 0:00:23]} 34. Bg3 {[%emt 0:00:05]} Nc8 {[%emt 0:04:45]} 35. Kf2 {[%emt 0:01:33]} Kc6 {[%emt 0:01:24]} 36. Ke2 {[%emt 0:02:55]} Nb6 {[%emt 0:00:58]} 37. a5 {[%emt 0:13:02]} Re4+ {[%emt 0:00:35]} 38. Kf3 {[%emt 0:00:00]} Nc4 {[%emt 0:00:43]} 39. Ra2 {[%emt 0:00:00]} Kb5 {[%emt 0:01:58]} 40. b3 {[%emt 0:00:00]} Nxa5 {[%emt 0:00:36]} 41. c4+ {[%emt 0:25:45]} Kb4 {[%emt 0:31:39]} 42. Ra4+ {[%emt 0:03:24]} Kxb3 {[%emt 0:00:11]} 43. Rxa5 {[%emt 0:00:07]} Rxc4 {[%emt 0:00:17]} 44. Bf2 {[%emt 0:00:00]} Ra4 {[%emt 0:00:00]} 45. Rxa4 {[%emt 0:00:00]} Kxa4 {[%emt 0:00:00]} 46. h4 {[%emt 0:00:00]} Kb5 {[%emt 0:00:00]} 47. f5 {[%emt 0:00:00]} exf5 {[%emt 0:00:00]} 48. e6 {[%emt 0:00:00]} fxe6 {[%emt 0:00:00]} 49. h5 {[%emt 0:00:00]} 1-0

[Event "13th Dolomiti-Forni di Sopra-A 2022"]
[Site "Forni di Sopra"]
[Date "2022.06.17"]
[Round "7.12"]
[White "Candian, Lorenzo"]
[Black "Caruso, Augusto"]
[Result "0-1"]
[ECO "C70"]
[WhiteElo "2048"]
[BlackElo "2127"]
[Annotator "NA RC"]
[PlyCount "68"]
[EventDate "2022.06.13"]
[EventType "swiss"]
[EventCountry "ITA"]
[SourceTitle "playchess.com"]
[Source "ChessBase"]
[SourceQuality "1"]
[TimeControl "40/5400+30:1800+30"]

1. e4 e5 2. Nf3 Nc6 3. Bb5 a6 4. Ba4 f5 5. d3 fxe4 6. dxe4 Nf6 7. Bb3 Bc5 8. O-O d6 9. Ng5 Bg4 10. Qe1 Nd4 11. h3 Nxb3 12. axb3 h6 13. hxg4 hxg5 14. b4 Ba7 15. Qe2 Qd7 16. Nc3 Qxg4 17. Qxg4 Nxg4 18. Nd5 Kd7 19. Bxg5 Rh5 20. Be3 Rah8 21. g3 Nxe3 22. fxe3 c6 23. Nc3 Rh1+ 24. Kg2 R8h2+ 25. Kf3 Rxf1+ 26. Rxf1 Rxc2 27. Kg4 Ke6 28. Kg5 Bxe3+ 29. Kg6 Rg2 30. Rf3 Bh6 31. Na4 b5 32. Nb6 Bf4 33. g4 Rxg4+ 34. Kh5 Rg3 0-1

[Event "13th Dolomiti-Forni di Sopra-A 2022"]
[Site "Forni di Sopra"]
[Date "2022.06.17"]
[Round "7.13"]
[White "Lavorgna, Giovanni"]
[Black "Tonel, Giulia"]
[Result "0-1"]
[ECO "E81"]
[WhiteElo "1834"]
[BlackElo "1964"]
[Annotator "TA"]
[PlyCount "22"]
[EventDate "2022.06.13"]
[EventType "swiss"]
[EventCountry "ITA"]
[SourceTitle "playchess.com"]
[Source "ChessBase"]
[SourceQuality "1"]
[TimeControl "40/5400+30:1800+30"]

{[%evp 14,22,58,58,58,32,50,39,68,71,84]} 1. d4 {[%emt 0:00:02]} Nf6 {[%emt 0:00:18]} 2. c4 {[%emt 0:00:09]} g6 {[%emt 0:00:10]} 3. Nc3 {[%emt 0:00:18]} Bg7 {[%emt 0:00:12]} 4. e4 {[%emt 0:00:16]} d6 {[%emt 0:00:09]} 5. f3 {[%emt 0:00:22]} O-O {[%emt 0:01:41]} 6. Bg5 {[%emt 0:00:37]} c6 {[%emt 0:01:29]} 7. Qd2 {[%emt 0:00:52]} e5 {[%emt 0:04:09]} 8. d5 {[%emt 0:01:36]} a6 {E81: King's Indian: Sämisch: 6th move deviations (including 6 Be3 c6).} 9. a4 {[%emt 0:05:08][%cal Ba2a4,Ba4a5][%mdl 32]} Qa5 {[%emt 0:09:25]} 10. Ra3 {[%emt 0:02:47] [#]} Qb4 $146 {[%emt 0:05:00]} ({Predecessor:} 10... cxd5 11. cxd5 Nbd7 12. Nge2 Nc5 13. Nc1 Re8 14. Be2 Nh5 15. Be3 Nf4 16. O-O Qd8 {½-½ (33) Radusinovic,L (2162)-Simic,Z (2284) Novi Sad 2009}) 11. a5 {[%emt 0:19:56] [#] Ra4 is the strong threat.} b5 {[%emt 0:07:57][%mdl 32768] Against Ra4. Black did not feel at home in the position after the opening.  Weighted Error Value: White=0.09 (flawless) /Black=0.16 (very precise) . Loss on time!?} 0-1